fUSD/lending_fUSD_20250923
["ID","MTS","AMOUNT","RATE_DAILY","PERIOD"]
[387256209,1758664483824,-644.91,0.00030136,3]
[387256210,1758664483833,-613.5,0.00030136,3]
[387256211,1758664483843,-644.94,0.00030136,3]
[387256212,1758664483851,-924.07,0.00030136,3]
[387256213,1758664483860,-413.72,0.00030136,3]
[387256214,1758664483869,-1218.93,0.00030136,3]
[387256215,1758664483878,-525.7,0.00030136,3]
[387256216,1758664483887,-221.09341667,0.00030136,3]
[387256217,1758664483896,-431.76,0.00030136,3]
[387256218,1758664483905,-501.11,0.00030136,3]
[387256219,1758664483914,-523.06,0.00030136,3]
[387256220,1758664483924,-964.09,0.00030136,3]
[387256221,1758664483933,-2926.65,0.00030136,3]
[387256222,1758664483942,-472.05,0.00030136,3]
[387256223,1758664483950,-1583.89,0.00030136,3]
[387256224,1758664483959,-400.0,0.00030136,3]
[387256225,1758664483969,-1089.09,0.00030136,3]
[387256226,1758664483977,-400.0,0.00030136,3]
[387256227,1758664483986,-684.39,0.00030136,3]
[387256228,1758664483995,-453.77,0.00030136,3]
[387256229,1758664484004,-564.83,0.00030136,3]
[387256230,1758664484013,-814.85,0.00030136,3]
[387256231,1758664484022,-873.79,0.00030136,3]
[387256232,1758664484031,-548.44,0.00030136,3]
[387256233,1758664484040,-1681.09,0.00030136,3]
[387256234,1758664484049,-10315.68,0.00030136,3]
[387256235,1758664484058,-478.24,0.00030136,3]
[387256236,1758664484067,-1081.32,0.00030136,3]
[387256237,1758664484076,-490.24,0.00030136,3]
[387256238,1758664484086,-710.95,0.00030136,3]
[387256239,1758664484095,-852.97,0.00030136,3]
[387256240,1758664484104,-895.27,0.00030136,3]
[387256241,1758664484113,-1874.55,0.00030136,3]
[387256242,1758664484122,-532.39,0.00030136,3]
[387256243,1758664484131,-1448.24,0.00030136,3]
[387256244,1758664484140,-677.14,0.00030136,3]
[387256245,1758664484149,-2056.2,0.00030136,3]
[387256246,1758664484159,-443.95,0.00030136,3]
[387256247,1758664484167,-1886.51,0.00030136,3]
[387256248,1758664484177,-1803.32,0.00030136,3]
[387256249,1758664484186,-1804.22,0.00030136,3]
[387256250,1758664484195,-1120.28,0.00030136,3]
[387256251,1758664484204,-1527.7,0.00030136,3]
[387256252,1758664484214,-517.83,0.00030136,3]
[387256253,1758664484223,-524.16,0.00030136,3]
[387256254,1758664484232,-2362.16,0.00030136,3]
[387256255,1758664484241,-3343.32,0.00030136,3]
[387256256,1758664484250,-1564.43,0.00030136,3]
[387256257,1758664484259,-2055.82,0.00030136,3]
[387256258,1758664484268,-400.0,0.00030136,3]
[387256259,1758664484277,-2920.55,0.00030136,3]
[387256260,1758664484286,-485.4,0.00030136,3]
[387256261,1758664484295,-1036.13,0.00030136,3]
[387256262,1758664484305,-542.94,0.00030136,3]
[387256263,1758664484314,-2377.65,0.00030136,3]
[387256264,1758664484323,-3270.38,0.00030136,3]
[387256265,1758664484332,-4398.6,0.00030136,3]
[387256266,1758664484341,-1866.28,0.00030136,3]
[387256267,1758664484350,-491.17,0.00030136,3]
[387256268,1758664484359,-1774.73,0.00030136,3]
[387256269,1758664484368,-1493.5,0.00030136,3]
[387256270,1758664484377,-441.23,0.00030136,3]
[387256271,1758664484386,-872.02,0.00030136,3]
[387256272,1758664484395,-2733.93,0.00030136,3]
[387256273,1758664484404,-2206.4,0.00030136,3]
[387256274,1758664484413,-841.18,0.00030136,3]
[387256275,1758664484422,-1970.71,0.00030136,3]
[387256276,1758664484436,-1182.93,0.00030136,3]
[387256277,1758664484445,-3675.81,0.00030136,3]
[387256278,1758664484454,-566.5,0.00030136,3]
[387256279,1758664484463,-660.51,0.00030136,3]
[387256280,1758664484474,-469.2,0.00030136,3]
[387256281,1758664484483,-1466.11,0.00030136,3]
[387256282,1758664484492,-515.64,0.00030136,3]
[387256283,1758664484502,-535.19,0.00030136,3]
[387256284,1758664484512,-788.86,0.00030136,3]
[387256285,1758664484521,-1923.86,0.00030136,3]
[387256286,1758664484530,-493.51,0.00030136,3]
[387256287,1758664484540,-12445.83,0.00030136,3]
[387256288,1758664484549,-681.58,0.00030136,3]
[387256289,1758664484558,-770.57,0.00030136,3]
[387256290,1758664484567,-1593.87,0.00030136,3]
[387256291,1758664484576,-1657.6,0.00030136,3]
[387256292,1758664484585,-1375.02,0.00030136,3]
[387256293,1758664484595,-3103.88,0.00030136,3]
[387256294,1758664484604,-4394.25,0.00030136,3]
[387256295,1758664484613,-1354.9,0.00030136,3]
[387256296,1758664484623,-483.59,0.00030136,3]
[387256297,1758664484632,-2705.96,0.00030136,3]
[387256298,1758664484642,-2718.14,0.00030136,3]
[387256299,1758664484651,-1525.42,0.00030136,3]
[387256300,1758664484660,-506.66,0.00030136,3]
[387256301,1758664484669,-1801.89,0.00030136,3]
[387256302,1758664484678,-616.12,0.00030136,3]
[387256303,1758664484687,-1080.71,0.00030136,3]
[387256304,1758664484697,-1946.95,0.00030136,3]
[387256305,1758664484706,-8925.42,0.00030136,3]
[387256306,1758664484716,-693.58,0.00030136,3]
[387256307,1758664484725,-778.13,0.00030136,3]
[387256308,1758664484734,-537.74,0.00030136,3]
[387256309,1758664484743,-6607.03,0.00030136,3]
[387256310,1758664484753,-1718.13,0.00030136,3]
[387256311,1758664484762,-1594.83,0.00030136,3]
[387256312,1758664484771,-487.88,0.00030136,3]
[387256313,1758664484780,-1594.41,0.00030136,3]
[387256314,1758664484790,-779.18,0.00030136,3]
[387256315,1758664484799,-3295.49,0.00030136,3]
[387256316,1758664484808,-1328.48,0.00030136,3]
[387256317,1758664484818,-2770.64,0.00030136,3]
[387256318,1758664484827,-720.33,0.00030136,3]
[387256319,1758664484837,-1145.93,0.00030136,3]
[387256320,1758664484846,-711.94,0.00030136,3]
[387256321,1758664484855,-3077.98,0.00030136,3]
[387256322,1758664484864,-560.56,0.00030136,3]
[387256323,1758664484874,-2609.15,0.00030136,3]
[387256324,1758664484883,-1532.57,0.00030136,3]
[387256325,1758664484892,-1601.89,0.00030136,3]
[387256326,1758664484902,-470.81,0.00030136,3]
[387256327,1758664484911,-473.85,0.00030136,3]
[387256328,1758664484921,-736.9,0.00030136,3]
[387256329,1758664484930,-1583.84,0.00030136,3]
[387256330,1758664484939,-2011.79,0.00030136,3]
[387256331,1758664484948,-444.2,0.00030136,3]
[387256332,1758664484958,-1424.75,0.00030136,3]
[387256333,1758664484967,-814.88,0.00030136,3]
[387256334,1758664484976,-1011.39,0.00030136,3]
[387256335,1758664484986,-1854.54,0.00030136,3]
[387256336,1758664484995,-2063.59,0.00030136,3]
[387256337,1758664485004,-821.38,0.00030136,3]
[387256338,1758664485013,-7260.11,0.00030136,3]
[387256339,1758664485021,-746.48,0.00030136,3]
[387256340,1758664485030,-1885.78,0.00030136,3]
[387256341,1758664485039,-667.22,0.00030136,3]
[387256342,1758664485048,-1320.39,0.00030136,3]
[387256343,1758664485058,-1989.15,0.00030136,3]
[387256344,1758664485068,-403.83,0.00030136,3]
[387256345,1758664485077,-400.0,0.00030136,3]
[387256346,1758664485087,-723.28,0.00030136,3]
[387256347,1758664485097,-1086.66,0.00030136,3]
[387256348,1758664485107,-561.18,0.00030136,3]
[387256349,1758664485116,-1260.0,0.00030136,3]
[387256350,1758664485126,-502.26,0.00030136,3]
[387256351,1758664485136,-1474.59,0.00030136,3]
[387256352,1758664485145,-3598.37,0.00030136,3]
[387256353,1758664485154,-446.96,0.00030136,3]
[387256354,1758664485163,-506.33,0.00030136,3]
[387256355,1758664485172,-2702.29,0.00030136,3]
[387256356,1758664485181,-1424.01,0.00030136,3]
[387256357,1758664485191,-1721.72,0.00030136,3]
[387256358,1758664485200,-670.32,0.00030136,3]
[387256359,1758664485210,-1420.11,0.00030136,3]
[387256360,1758664485219,-1056.56,0.00030136,3]
[387256361,1758664485228,-1620.58,0.00030136,3]
[387256362,1758664485237,-1331.6,0.00030136,3]
[387256363,1758664485246,-1563.82,0.00030136,3]
[387256364,1758664485255,-749.44,0.00030136,3]
[387256365,1758664485264,-760.02,0.00030136,3]
[387256366,1758664485274,-1527.26,0.00030136,3]
[387256367,1758664485283,-2954.78,0.00030136,3]
[387256368,1758664485293,-1966.97,0.00030136,3]
[387256369,1758664485303,-3361.37,0.00030136,3]
[387256370,1758664485312,-655.81,0.00030136,3]
[387256371,1758664485322,-691.42,0.00030136,3]
[387256372,1758664485332,-1062.51,0.00030136,3]
[387256373,1758664485341,-4579.98,0.00030136,3]
[387256374,1758664485351,-588.0,0.00030136,3]
[387256375,1758664485360,-2353.38,0.00030136,3]
[387256376,1758664485369,-426.64,0.00030136,3]
[387256377,1758664485379,-891.93,0.00030136,3]
[387256378,1758664485388,-836.0,0.00030136,3]
[387256379,1758664485397,-1342.02,0.00030136,3]
[387256380,1758664485407,-2297.98,0.00030136,3]
[387256381,1758664485416,-557.1,0.00030136,3]
[387256382,1758664485427,-430.82,0.00030136,3]
[387256383,1758664485438,-2148.78,0.00030136,3]
[387256384,1758664485447,-400.0,0.00030136,3]
[387256385,1758664485457,-11455.47,0.00030136,3]
[387256386,1758664485466,-1798.01,0.00030136,3]
[387256387,1758664485477,-984.5,0.00030136,3]
[387256388,1758664485487,-2944.68,0.00030136,3]
[387256389,1758664485498,-400.0,0.00030136,3]
[387256390,1758664485507,-1120.22,0.00030136,3]
[387256391,1758664485517,-400.0,0.00030136,3]
[387256392,1758664485526,-1488.78,0.00030136,3]
[387256393,1758664485536,-8056.28,0.00030136,3]
[387256394,1758664485545,-2673.31,0.00030136,3]
[387256395,1758664485555,-403.19,0.00030136,3]
[387256396,1758664485564,-1898.09,0.00030136,3]
[387256397,1758664485573,-2196.12,0.00030136,3]
[387256398,1758664485583,-736.09,0.00030136,3]
[387256399,1758664485592,-509.42,0.00030136,3]
[387256400,1758664485601,-1729.78,0.00030136,3]
[387256401,1758664485611,-858.26,0.00030136,3]
[387256402,1758664485620,-944.83,0.00030136,3]
[387256403,1758664485629,-2115.52,0.00030136,3]
[387256404,1758664485639,-1160.52,0.00030136,3]
[387256405,1758664485649,-523.04,0.00030136,3]
[387256406,1758664485658,-486.6,0.00030136,3]
[387256407,1758664485668,-590.58,0.00030136,3]
[387256408,1758664485677,-2168.16,0.00030136,3]
[387256409,1758664485687,-1974.89,0.00030136,3]
[387256410,1758664485696,-4427.59,0.00030136,3]
[387256411,1758664485706,-543.91,0.00030136,3]
[387256412,1758664485715,-1479.38,0.00030136,3]
[387256413,1758664485724,-1946.73,0.00030136,3]
[387256414,1758664485733,-1720.08,0.00030136,3]
[387256415,1758664485743,-1290.76,0.00030136,3]
[387256416,1758664485752,-570.83,0.00030136,3]
[387256417,1758664485761,-727.07,0.00030136,3]
[387256418,1758664485771,-633.05,0.00030136,3]
[387256419,1758664485780,-413.88,0.00030136,3]
[387256420,1758664485789,-505.54,0.00030136,3]
[387256421,1758664485799,-3204.79,0.00030136,3]
[387256422,1758664485808,-654.93,0.00030136,3]
[387256423,1758664485818,-760.67,0.00030136,3]
[387256424,1758664485833,-1733.39,0.00030136,3]
[387256425,1758664485844,-1323.54,0.00030136,3]
[387256426,1758664485854,-2310.41,0.00030136,3]
[387256427,1758664485863,-562.75,0.00030136,3]
[387256428,1758664485874,-1966.27,0.00030136,3]
[387256429,1758664485883,-551.29,0.00030136,3]
[387256430,1758664485893,-2523.28,0.00030136,3]
[387256431,1758664485902,-1174.67,0.00030136,3]
[387256432,1758664485911,-421.49,0.00030136,3]
[387256433,1758664485921,-706.26,0.00030136,3]
[387256434,1758664485930,-3628.11,0.00030136,3]
[387256435,1758664485940,-2604.18,0.00030136,3]
[387256436,1758664485949,-1829.63,0.00030136,3]
[387256437,1758664485959,-565.31,0.00030136,3]
[387256438,1758664485968,-2276.88,0.00030136,3]
[387256439,1758664485978,-2516.63,0.00030136,3]
[387256440,1758664485987,-1595.55,0.00030136,3]
[387256441,1758664485997,-2647.87,0.00030136,3]
[387256442,1758664486006,-1399.27,0.00030136,3]
[387256443,1758664486015,-4362.99,0.00030136,3]
[387256444,1758664486025,-3130.39,0.00030136,3]
[387256445,1758664486034,-1323.37,0.00030136,3]
[387256446,1758664486044,-435.62,0.00030136,3]
[387256447,1758664486055,-410.88,0.00030136,3]
[387256448,1758664486065,-2164.69,0.00030136,3]
[387256449,1758664486074,-554.53,0.00030136,3]
[387256450,1758664486085,-2696.65,0.00030136,3]
[387256451,1758664486095,-400.0,0.00030136,3]
[387256452,1758664486104,-400.48546878,0.00030136,3]
[387256453,1758664486113,-1822.61,0.00030136,3]
[387256454,1758664486123,-2197.93,0.00030136,3]
[387256455,1758664486132,-7563.58,0.00030136,3]
[387256456,1758664486141,-547.88,0.00030136,3]
[387256457,1758664486151,-2557.76,0.00030136,3]
[387256458,1758664486160,-2080.13,0.00030136,3]
[387256459,1758664486169,-2360.32,0.00030136,3]
[387256460,1758664486179,-2254.46,0.00030136,3]
[387256461,1758664486188,-439.37,0.00030136,3]
[387256462,1758664486197,-413.35,0.00030136,3]
[387256463,1758664486206,-587.39,0.00030136,3]
[387256464,1758664486215,-3272.4,0.00030136,3]
[387256465,1758664486224,-2668.58,0.00030136,3]
[387256466,1758664486234,-400.0,0.00030136,3]
[387256467,1758664486243,-1439.94,0.00030136,3]
[387256468,1758664486459,-1694.56,0.00030136,3]
[387256469,1758664486470,-877.79,0.00030136,3]
[387256470,1758664486479,-1910.92,0.00030136,3]
[387256471,1758664486489,-2031.07,0.00030136,3]
[387256472,1758664486500,-784.22,0.00030136,3]
[387256473,1758664486510,-791.36,0.00030136,3]
[387256474,1758664486519,-559.88,0.00030136,3]
[387256475,1758664486529,-976.72,0.00030136,3]
[387256476,1758664486538,-626.61,0.00030136,3]
[387256477,1758664486548,-4896.65,0.00030136,3]
[387256478,1758664486557,-400.0,0.00030136,3]
[387256479,1758664486567,-1205.82,0.00030136,3]
[387256480,1758664486576,-1169.14,0.00030136,3]
[387256481,1758664486585,-1175.49,0.00030136,3]
[387256482,1758664486595,-2758.07,0.00030136,3]
[387256483,1758664486604,-2495.95,0.00030136,3]
[387256484,1758664486614,-1049.38,0.00030136,3]
[387256485,1758664486624,-685.44,0.00030136,3]
[387256486,1758664486633,-4079.21,0.00030136,3]
[387256487,1758664486643,-1207.96,0.00030136,3]
[387256488,1758664486652,-2510.3,0.00030136,3]
[387256489,1758664486662,-1595.32,0.00030136,3]
[387256490,1758664486672,-1678.52,0.00030136,3]
[387256491,1758664486681,-16706.02,0.00030136,3]
[387256492,1758664486691,-400.0,0.00030136,3]
[387256493,1758664486701,-689.28,0.00030136,3]
[387256494,1758664486710,-1890.53,0.00030136,3]
[387256495,1758664486719,-720.98,0.00030136,3]
[387256496,1758664486729,-316.43041146,0.00030136,3]
[387256497,1758664486738,-3330.98,0.00030136,3]
[387256498,1758664486747,-4251.49,0.00030136,3]
[387256499,1758664486757,-487.18,0.00030136,3]
[387256500,1758664486766,-605.39,0.00030136,3]
[387256501,1758664486775,-425.07,0.00030136,3]
[387256502,1758664486784,-630.04,0.00030136,3]
[387256503,1758664486794,-2074.52,0.00030136,3]
[387256504,1758664486803,-507.22,0.00030136,3]
[387256505,1758664486813,-1822.56,0.00030136,3]
[387256506,1758664486822,-1189.77,0.00030136,3]
[387256507,1758664486831,-908.29,0.00030136,3]
[387256508,1758664487047,-752.17,0.00030136,3]
[387256509,1758664487062,-425.15,0.00030136,3]
[387256510,1758664487071,-13418.14,0.00030136,3]
[387256511,1758664487082,-2046.35,0.00030136,3]
[387256512,1758664487092,-527.41,0.00030137,2]
[387256513,1758664487101,-2010.16103824,0.00030137,120]
[387256514,1758664487111,-1758.03,0.00030137,7]
[387256515,1758664487121,-172.13296278,0.00030149,7]
[387256516,1758664487130,-1500.0,0.00030149,7]
[387256517,1758664487140,-500.0,0.00030149,7]
[387256518,1758664487149,-500.0,0.00030149,7]
[387256519,1758664487158,-219.37662192,0.00030149,7]
[387256520,1758664487168,-1900.0,0.00030149,7]
[387256521,1758664487177,-1500.0,0.00030149,7]
[387256522,1758664487187,-500.0,0.00030149,7]
[387256523,1758664487196,-1500.0,0.00030149,7]
[387256524,1758664487205,-1900.0,0.00030149,7]
[387256525,1758664487215,-500.0,0.00030149,7]
[387256526,1758664487224,-1900.0,0.00030149,7]
[387256527,1758664487233,-500.0,0.00030149,7]
[387256528,1758664487243,-500.0,0.00030149,7]
[387256529,1758664487252,-1500.0,0.00030149,7]
[387256530,1758664487262,-500.0,0.00030149,7]
[387256531,1758664487271,-1500.0,0.00030149,7]
[387256532,1758664487280,-725.4914926,0.00030149,7]
[387256533,1758664487290,-1900.0,0.00030149,7]
[387256534,1758664487299,-1500.0,0.00030149,7]
[387256535,1758664487309,-1500.0,0.00030149,7]
[387256536,1758664487318,-1500.0,0.00030149,7]
[387256537,1758664487327,-500.0,0.00030149,7]
[387256538,1758664487337,-1900.0,0.00030149,7]
[387256539,1758664487346,-1500.0,0.00030149,7]
[387256540,1758664487355,-1000.0,0.00030149,7]
[387256541,1758664487365,-1500.0,0.00030149,7]
[387256542,1758664487374,-1900.0,0.00030149,7]
[387256543,1758664487383,-1500.0,0.00030149,7]
[387256544,1758664487392,-1000.0,0.00030149,7]
[387256545,1758664487402,-1900.0,0.00030149,7]
[387256546,1758664487411,-1500.0,0.00030149,7]
[387256547,1758664487421,-572.14850182,0.00030149,7]
[387256548,1758664487436,-500.7,0.00030149,7]
[387256549,1758664487447,-1500.0,0.00030149,7]
[387256550,1758664487458,-2500.0,0.00030149,7]
[387256551,1758664487468,-1000.0,0.00030149,7]
[387256552,1758664487479,-1500.0,0.00030149,7]
[387256553,1758664487488,-1500.0,0.00030149,7]
[387256554,1758664487498,-2500.0,0.00030149,7]
[387256555,1758664487508,-1000.0,0.00030149,7]
[387256556,1758664487517,-1900.0,0.00030149,7]
[387256557,1758664487526,-1500.0,0.00030149,7]
[387256558,1758664487536,-1500.0,0.00030149,7]
[387256559,1758664487546,-2500.0,0.00030149,7]
[387256560,1758664487555,-1000.0,0.00030149,7]
[387256561,1758664487565,-724.13402505,0.00030149,7]
[387256562,1758664487575,-1500.0,0.00030149,7]
[387256563,1758664487584,-1900.0,0.00030149,7]
[387256564,1758664487594,-1500.0,0.00030149,7]
[387256565,1758664487603,-2500.0,0.00030149,7]
[387256566,1758664487613,-276.43188321,0.00030149,7]
[387256567,1758664487622,-1000.0,0.00030149,7]
[387256568,1758664487633,-1500.0,0.00030149,7]
[387256569,1758664487642,-1900.0,0.00030149,7]
[387256570,1758664487653,-1500.0,0.00030149,7]
[387256571,1758664487663,-2500.0,0.00030149,7]
[387256572,1758664487672,-1000.0,0.00030149,7]
[387256573,1758664487682,-1500.0,0.00030149,7]
[387256574,1758664487691,-1900.0,0.00030149,7]
[387256575,1758664487701,-2500.0,0.00030149,7]
[387256576,1758664487711,-1000.0,0.00030149,7]
[387256577,1758664487720,-500.0,0.00030149,7]
[387256578,1758664487729,-1500.0,0.00030149,7]
[387256579,1758664487739,-1900.0,0.00030149,7]
[387256580,1758664487749,-2500.0,0.00030149,7]
[387256581,1758664487758,-1500.0,0.00030149,7]
[387256582,1758664487768,-1000.0,0.00030149,7]
[387256583,1758664487777,-1900.0,0.00030149,7]
[387256584,1758664487787,-1500.0,0.00030149,7]
[387256585,1758664487797,-2500.0,0.00030149,7]
[387256586,1758664487806,-1000.0,0.00030149,7]
[387256587,1758664487816,-1500.0,0.00030149,7]
[387256588,1758664487826,-500.0,0.00030149,7]
[387256589,1758664487835,-1400.0,0.00030149,7]
[387256590,1758664487845,-1900.0,0.00030149,7]
[387256591,1758664487854,-1500.0,0.00030149,7]
[387256592,1758664487863,-1500.0,0.00030149,7]
[387256593,1758664487873,-1000.0,0.00030149,7]
[387256594,1758664487882,-600.0,0.00030149,7]
[387256595,1758664487892,-1400.0,0.00030149,7]
[387256596,1758664487901,-500.0,0.00030149,7]
[387256597,1758664487911,-1500.0,0.00030149,7]
[387256598,1758664487920,-470.62702652,0.00030149,7]
[387256599,1758664487929,-1900.0,0.00030149,7]
[387256600,1758664487938,-1000.0,0.00030149,7]
[387256601,1758664487947,-600.0,0.00030149,7]
[387256602,1758664487957,-1500.0,0.00030149,7]
[387256603,1758664487967,-1400.0,0.00030149,7]
[387256604,1758664487976,-2500.0,0.00030149,7]
[387256605,1758664487986,-1500.0,0.00030149,7]
[387256606,1758664487995,-575.87447527,0.00030149,7]
[387256607,1758664488004,-1000.0,0.00030149,7]
[387256608,1758664488014,-1900.0,0.00030149,7]
[387256609,1758664488023,-600.0,0.00030149,7]
[387256610,1758664488034,-1500.0,0.00030149,7]
[387256611,1758664488044,-2500.0,0.00030149,7]
[387256612,1758664488054,-1500.0,0.00030149,7]
[387256613,1758664488064,-500.0,0.00030149,7]
[387256614,1758664488075,-1900.0,0.00030149,7]
[387256615,1758664488085,-600.0,0.00030149,7]
[387256616,1758664488095,-1500.0,0.00030149,7]
[387256617,1758664488105,-1000.0,0.00030149,7]
[387256618,1758664488115,-2500.0,0.00030149,7]
[387256619,1758664488124,-500.0,0.00030149,7]
[387256620,1758664488134,-1500.0,0.00030149,7]
[387256621,1758664488143,-1400.0,0.00030149,7]
[387256622,1758664488154,-604.19550006,0.00030149,7]
[387256623,1758664488164,-500.0,0.00030149,7]
[387256624,1758664488173,-500.0,0.00030149,7]
[387256625,1758664488183,-600.0,0.00030149,7]
[387256626,1758664488192,-1900.0,0.00030149,7]
[387256627,1758664488202,-1000.0,0.00030149,7]
[387256628,1758664488211,-2500.0,0.00030149,7]
[387256629,1758664488221,-1500.0,0.00030149,7]
[387256630,1758664488231,-1400.0,0.00030149,7]
[387256631,1758664488240,-500.0,0.00030149,7]
[387256632,1758664488250,-1000.0,0.00030149,7]
[387256633,1758664488260,-1900.0,0.00030149,7]
[387256634,1758664488270,-600.0,0.00030149,7]
[387256635,1758664488279,-217.34983432,0.00030149,7]
[387256636,1758664488289,-2500.0,0.00030149,7]
[387256637,1758664488299,-1500.0,0.00030149,7]
[387256638,1758664488308,-1500.0,0.00030149,7]
[387256639,1758664488319,-500.0,0.00030149,7]
[387256640,1758664488328,-666.21449932,0.00030149,7]
[387256641,1758664488338,-1000.0,0.00030149,7]
[387256642,1758664488351,-1900.0,0.00030149,7]
[387256643,1758664488360,-600.0,0.00030149,7]
[387256644,1758664488370,-1500.0,0.00030149,7]
[387256645,1758664488380,-2500.0,0.00030149,7]
[387256646,1758664488390,-200.12199514,0.00030149,7]
[387256647,1758664488400,-500.0,0.00030149,7]
[387256648,1758664488410,-1500.0,0.00030149,7]
[387256649,1758664488421,-500.0,0.00030149,7]
[387256650,1758664488434,-500.0,0.00030149,7]
[387256651,1758664488444,-500.0,0.00030149,7]
[387256652,1758664488454,-1400.0,0.00030149,7]
[387256653,1758664488463,-1900.0,0.00030149,7]
[387256654,1758664488474,-181.09328842,0.00030149,7]
[387256655,1758664488484,-500.0,0.00030149,7]
[387256656,1758664488494,-1500.0,0.00030149,7]
[387256657,1758664488505,-2500.0,0.00030149,7]
[387256658,1758664488516,-1500.0,0.00030149,7]
[387256659,1758664488530,-500.0,0.00030149,7]
[387256660,1758664488544,-500.0,0.00030149,7]
[387256661,1758664488554,-1900.0,0.00030149,7]
[387256662,1758664488563,-500.0,0.00030149,7]
[387256663,1758664488573,-500.0,0.00030149,7]
[387256664,1758664488582,-2500.0,0.00030149,7]
[387256665,1758664488592,-1000.0,0.00030149,7]
[387256666,1758664488602,-600.0,0.00030149,7]
[387256667,1758664488615,-1500.0,0.00030149,7]
[387256668,1758664488633,-1500.0,0.00030149,7]
[387256669,1758664488645,-500.0,0.00030149,7]
[387256670,1758664488655,-500.0,0.00030149,7]
[387256671,1758664488665,-1900.0,0.00030149,7]
[387256672,1758664488675,-2500.0,0.00030149,7]
[387256673,1758664488684,-696.04825992,0.00030149,7]
[387256674,1758664488693,-1000.0,0.00030149,7]
[387256675,1758664488703,-500.0,0.00030149,7]
[387256676,1758664488712,-600.0,0.00030149,7]
[387256677,1758664488722,-1400.0,0.00030149,7]
[387256678,1758664488734,-1500.0,0.00030149,7]
[387256679,1758664488744,-1500.0,0.00030149,7]
[387256680,1758664488753,-500.0,0.00030149,7]
[387256681,1758664488763,-1700.0,0.00030149,7]
[387256682,1758664488772,-500.0,0.00030149,7]
[387256683,1758664488782,-1900.0,0.00030149,7]
[387256684,1758664488791,-900.0,0.00030149,7]
[387256685,1758664488801,-2500.0,0.00030149,7]
[387256686,1758664488811,-600.0,0.00030149,7]
[387256687,1758664488820,-500.0,0.00030149,7]
[387256688,1758664488830,-500.0,0.00030149,7]
[387256689,1758664488839,-1000.0,0.00030149,7]
[387256690,1758664488848,-1400.0,0.00030149,7]
[387256691,1758664488858,-1500.0,0.00030149,7]
[387256692,1758664488867,-500.0,0.00030149,7]
[387256693,1758664488877,-500.0,0.00030149,7]
[387256694,1758664488886,-1900.0,0.00030149,7]
[387256695,1758664488895,-1700.0,0.00030149,7]
[387256696,1758664488904,-1500.0,0.00030149,7]
[387256697,1758664488913,-900.0,0.00030149,7]
[387256698,1758664488923,-2500.0,0.00030149,7]
[387256699,1758664488932,-600.0,0.00030149,7]
[387256700,1758664488941,-1000.0,0.00030149,7]
[387256701,1758664488950,-500.0,0.00030149,7]
[387256702,1758664488959,-1400.0,0.00030149,7]
[387256703,1758664488968,-500.0,0.00030149,7]
[387256704,1758664488978,-1500.0,0.00030149,7]
[387256705,1758664488987,-1700.0,0.00030149,7]
[387256706,1758664488996,-1567.20390862,0.00030149,7]
[387256707,1758664489005,-500.0,0.00030149,7]
[387256708,1758664489015,-1900.0,0.00030149,7]